Cogmind - Beta 16 @@@ ROGUE MODE // 2026.01.09 @ 13:19:28 Player: jam Result: Self-destructed Performance ------------- Evolutions (2) 1000 Regions Visited (5) 1000 Robots Destroyed (40) 200 Value Destroyed (877) 877 Prototype IDs (1) 20 Alien Tech Used (0) 0 Bonus (281) 281 TOTAL SCORE: 3378 Bonus ------- Follower Combat Kills 81 Entered Garrisons 200 Cogmind --------- Core Integrity 223/550 Matter 220/300 Energy 85/100 System Corruption 0% Temperature Cool (0) Movement Core (50) Location -8/Garrison Parts ------- > --- POWER (2) -------- (None) > --- PROPULSION (3) --- (None) > --- UTILITY (4) ------ (None) > --- WEAPON (2) ------- (None) > --- INVENTORY (5) ---- Targeting Computer Medium Armor Plating Dynamic Insulation System Plasma Cannon Grenade Launcher Peak State ------------ > --- POWER ------------ Ion Engine Ion Engine > --- PROPULSION ------- Light Treads Armored Treads Armored Treads > --- UTILITY ---------- Medium Storage Unit Targeting Computer Medium Armor Plating Hacking Suite > --- WEAPON ----------- Heavy Particle Gun Plasma Cannon > --- INVENTORY -------- Light Treads Light Treads Targeting Computer Targeting Computer ECM Suite Medium Armor Plating Dynamic Insulation System Ion Cannon Shotgun Grenade Launcher [Rating: 25] Favorites ----------- Power Ion Engine Engine Ion Engine Propulsion Light Treads Treads Light Treads Utility Medium Storage Unit Device Tractor Beam Storage Medium Storage Unit Processor Targeting Computer Hackware Hacking Suite Protection Medium Armor Plating Weapon Light Assault Rifle Energy Gun Medium Laser Energy Cannon Particle Cannon Ballistic Gun Light Assault Rifle Launcher Grenade Launcher Build | -11 -10 -9 -9 -8 -8 ------- Run | Yrd Mat Mat Min Mat Gar Slots Evolved 4 | . . 2 . 2 . Power 1 | . . . . 1 . Propulsion 1 | . . 1 . . . Utility 2 | . . 1 . 1 . Weapon . | . . . . . . Parts Attached 34 | 7 5 8 1 9 4 Power 6 | 1 1 2 . 1 1 Engine 6 | 1 1 2 . 1 1 Core . | . . . . . . Reactor . | . . . . . . Propulsion 9 | 2 1 3 . 2 1 Treads 9 | 2 1 3 . 2 1 Leg . | . . . . . . Wheel . | . . . . . . Hover . | . . . . . . Flight . | . . . . . . Utility 7 | 2 2 1 . 2 . Device 1 | 1 . . . . . Storage 2 | 1 1 . . . . Processor 2 | . 1 1 . . . Hackware 1 | . . . . 1 . Protection 1 | . . . . 1 . Artifact . | . . . . . . Weapon 12 | 2 1 2 1 4 2 Energy Gun 2 | 1 . . . 1 . Energy Cannon 4 | . . 1 . 2 1 Ballistic Gun 5 | 1 . 1 1 1 1 Ballistic Cannon . | . . . . . . Launcher 1 | . 1 . . . . Special Weapon . | . . . . . . Impact Weapon . | . . . . . . Slashing Weapon . | . . . . . . Piercing Weapon . | . . . . . . Special Melee Weapon . | . . . . . . Unidentified Prototypes 1 | . . . . 1 . Parts Lost 5 | . 2 . . . 3 Power 2 | . 1 . . . 1 Propulsion 1 | . 1 . . . . Utility 1 | . . . . . 1 Weapon 1 | . . . . . 1 Highest Loss Streak 3 | . 2 . . . 3 To Critical Strikes . | . . . . . . Average Backups 9 | 2 9 9 10 9 9 Power 1 | . 2 1 1 . . Propulsion 1 | 1 1 . 1 1 2 Utility 4 | . 2 6 6 5 5 Weapon 1 | . 1 1 1 2 2 Tool/Special . | . . . . . . Unused Backups 12 | . 2 2 2 . 6 Power 2 | . . 1 1 . . Propulsion 2 | . 2 . . . . Utility 6 | . . . 1 . 5 Weapon 2 | . . 1 . . 1 Tool/Special . | . . . . . . Average Slot Usage (%) 99 | . 99 99 100 99 99 Engine 13 | . 13 11 11 18 17 Treads 29 | . 27 32 33 27 26 Storage 11 | . 14 11 11 9 9 Processor 15 | . 12 22 22 11 9 Hackware 2 | . . . . 6 9 Protection 2 | . . . . 8 8 Energy Gun 5 | . 12 1 . 2 8 Energy Cannon 7 | . . 9 11 9 8 Ballistic Gun 8 | . 14 11 11 5 . Peak Build Rating 25 | 7 8 11 11 24 25 Average Rating 13 | 5 7 10 11 21 23 On Entrance 10 | . 7 7 11 11 24 Avg Prop Armor Cover (%) 17 | . . . . . 17 Naked Turns 7 | . . . . . 7 Heaviest Build 39 | 15 20 20 20 39 37 Greatest Support 60 | 40 40 60 60 60 60 Greatest Overweight (x) 1 | . . . . . 1 Average Overweight (x) . | . . . . . . Largest Inventory Capacity 10 | 8 10 10 10 10 10 Average Capacity 9 | 7 9 10 10 10 9 Most Carried 10 | 5 10 10 10 10 10 Average Carried 9 | 2 9 9 9 9 9 Final Capacity 10 | 8 10 10 10 10 5 Final Carried 10 | 5 8 10 10 10 5 Class Distribution -------------------- 94% | Mutant 5% | Scavenger-Mutant Dominant Class ---------------- Mutant | -10/Materials Mutant | -9/Materials Mutant | -9/Mines Mutant | -8/Materials Mutant | -8/Garrison Resources | -11 -10 -9 -9 -8 -8 ----------- Run | Yrd Mat Mat Min Mat Gar Matter Collected 797 | 291 86 196 15 109 100 Remotely 156 | 156 . . . . . Salvage Created 1322 | 146 316 420 120 49 271 Parts 67 | 8 18 26 6 . 9 Haulers Intercepted 3 | . 1 1 . 1 . Recyclers Shooed . | . . . . . . Parts Field Recycled . | . . . . . . Retrieved Matter . | . . . . . . Parts Self-Destructed . | . . . . . . Prevented . | . . . . . . Parts Restored . | . . . . . . Kills | -11 -10 -9 -9 -8 -8 ------- Run | Yrd Mat Mat Min Mat Gar Combat Hostiles Destroyed 26 | . 8 9 1 . 8 Guns 11 | . 5 3 . . 3 Cannons 10 | . . 6 1 . 3 AOE 3 | . 3 . . . . Classes Destroyed 11 | 2 5 3 1 . . Worker 1 | . . . 1 . . Tunneler 2 | 2 . . . . . Hauler 3 | . 1 1 . 1 . Recycler 2 | 1 . . 1 . . Mechanic 1 | . 1 . . . . Operator 1 | . . 1 . . . Watcher 4 | . 2 2 . . . Swarmer 10 | . 3 3 . . 4 Grunt 12 | . 5 4 1 . 2 Brawler 1 | . . 1 . . . Sentry 3 | . . 1 . . 2 Best Kill Streak 5 | 3 5 3 2 1 5 Combat Bots Only 5 | . 4 3 1 . 5 Max Kills in Single Turn 2 | 2 2 1 1 1 1 Gunslinging 1 | . 1 . . . . Exploded 1 | . 1 . . . . Melee . | . . . . . . Uniques/NPCs Destroyed . | . . . . . . Combat | -11 -10 -9 -9 -8 -8 -------- Run | Yrd Mat Mat Min Mat Gar Hostile Shots Fired 213 | . 61 40 4 . 108 Missed 48 | . 11 13 2 . 22 Hits 165 | . 50 27 2 . 86 Melee 16 | . . 4 . . 12 Projectile 149 | . 50 23 2 . 74 Critical Strikes 12 | . 3 3 . . 6 Damage Taken 2253 | . 660 335 33 . 1225 Core 483 | . 86 37 33 . 327 Absorbed by Shields . | . . . . . . Core Remaining (%) 82 | 100 65 . 82 . . Volleys Fired 107 | 7 27 35 6 9 23 Largest 2 | 2 2 2 2 2 2 Hottest 135 | 70 70 88 88 120 135 Shots Fired 209 | 14 52 70 12 18 43 Gun 138 | 14 49 38 6 7 24 Cannon 68 | . . 32 6 11 19 Launcher 3 | . 3 . . . . Special . | . . . . . . Kinetic 84 | 7 27 35 6 7 2 Thermal 122 | 7 22 35 6 11 41 Explosive 3 | . 3 . . . . Electromagnetic . | . . . . . . Robot Hit Streak 11 | 6 7 9 10 11 10 Robot Miss Streak 5 | 1 5 4 . 3 3 Penetration Max . | . . . . . . Secondary Targets 2 | . 2 . . . . Max Gunslinging Chain 1 | . 1 . . . . Shots Hit Robots 129 | 9 33 37 9 10 31 Core Hits 60 | 4 22 19 4 1 10 Critical Kills . | . . . . . . Critical Parts Destroyed . | . . . . . . Critical Strikes 4 | 2 1 . . . 1 Burn 4 | 2 1 . . . 1 Melee Attacks . | . . . . . . Impact . | . . . . . . Slashing . | . . . . . . Piercing . | . . . . . . Sneak Attacks . | . . . . . . Combat Hostiles . | . . . . . . Follow-up Attacks . | . . . . . . Damage Inflicted 2414 | 116 651 616 158 197 676 Guns 1087 | 116 389 176 34 39 333 Cannons 1047 | . . 428 124 158 337 Explosions 262 | . 262 . . . . Melee . | . . . . . . Ramming 18 | . . 12 . . 6 Kinetic 574 | 55 254 164 34 39 28 Thermal 1579 | 61 154 440 124 158 642 Explosive 243 | . 243 . . . . Electromagnetic . | . . . . . . Impact . | . . . . . . Slashing . | . . . . . . Piercing . | . . . . . . Highest Corruption . | . . . . . . Average Corruption . | . . . . . . Corruption Purged . | . . . . . . Corruption Blocked . | . . . . . . Overload Shots . | . . . . . . Overflow Damage 20 | . 14 . . 6 . Projectiles 6 | . . . . 6 . Explosions 14 | . 14 . . . . Melee . | . . . . . . Knockbacks . | . . . . . . Impact . | . . . . . . Kinetic . | . . . . . . Secondary . | . . . . . . Self-Inflicted Damage 26 | . 23 . . . 3 Shots 2 | . 2 . . . . Rammed 2 | . . 1 . . 1 Targets Rammed 2 | . . 1 . . 1 Kicked . | . . . . . . Crushed . | . . . . . . Highest Temperature 570 | 45 254 201 79 132 570 Average Temperature 116 | 19 59 66 35 43 277 Received Heat Transfer 777 | . 393 123 18 . 243 Effects 18 | . . . . . 18 Shutdowns 5 | . . . . . 5 Interference 2 | . . . . . 2 Matter Decay 2 | . . . . . 2 Short Circuit 4 | . . . . . 4 Damage (minor) 1 | . . . . . 1 Damage (major) 2 | . . . . . 2 Damage (core) 2 | . . . . . 2 Siege Activations . | . . . . . . Martial Activations . | . . . . . . Shielding Activations . | . . . . . . Robots Disrupted . | . . . . . . Combat Hostiles . | . . . . . . Robots Corrupted . | . . . . . . Combat Hostiles . | . . . . . . Parts Fried . | . . . . . . Impact Corruptions . | . . . . . . Robots Melted 2 | . . . . . 2 Combat Hostiles 2 | . . . . . 2 Parts Melted 9 | . 2 . . . 7 Heat Transferred 3408 | 333 531 814 222 259 1249 Parts Sabotaged . | . . . . . . Parts Stolen . | . . . . . . Parts Stripped . | . . . . . . Power Chain Reactions 1 | . 1 . . . . Alert | -11 -10 -9 -9 -8 -8 ------- Run | Yrd Mat Mat Min Mat Gar Maximum Alert Level 1 | . . . . . 1 Low Security (%) 99 | 100 100 100 100 100 98 Level 1 . | . . . . . 1 Level 2 . | . . . . . . Level 3 . | . . . . . . Level 4 . | . . . . . . Level 5 . | . . . . . . High Security . | . . . . . . Max Security . | . . . . . . Peak Influence 220 | 10 148 109 103 7 220 Initial 59 | . . 59 22 . 3 Average 38 | 1 19 69 35 . 59 Influence Increases 1015 | 15 290 261 212 20 217 Destroy 0b10 Robot/C 620 | . 160 180 120 . 160 Destroy 0b10 Robot/NC 70 | 15 20 20 10 5 . Destroy Leader 114 | . 46 46 20 2 . Allied During Kill 17 | . . . 17 . . Successful Hack 23 | . . . . 11 12 Disable Machine 30 | . 15 . 15 . . Destroy Structure 21 | . 19 . . 2 . Lose Combat Pursuer 120 | . 30 15 30 . 45 Influence Decreases 825 | 15 150 343 270 15 32 Entered New Map 119 | . . 81 36 . 2 Time Decay 596 | 15 130 262 174 15 . Lost Part 50 | . 20 . . . 30 Lost Ally 60 | . . . 60 . . Squads Dispatched 2 | . 1 1 . . . Investigation . | . . . . . . Extermination . | . . . . . . Reinforcement 2 | . 1 1 . . . Assault . | . . . . . . Garrison . | . . . . . . Intercept . | . . . . . . Searches Triggered . | . . . . . . Construction Impeded . | . . . . . . Haulers Reinforced . | . . . . . . Active Scanning Responses . | . . . . . . Cargo Convoy Interrupts . | . . . . . . Stealth | -11 -10 -9 -9 -8 -8 --------- Run | Yrd Mat Mat Min Mat Gar Distress Signals 2 | . . 2 . . . Communications Jammed . | . . . . . . Distress Signals . | . . . . . . Times Spotted 62 | . 14 15 7 5 21 Peak Tracking Total 10 | . 4 3 3 2 10 Tactical Retreats 6 | . 2 1 1 . 2 Traps | -11 -10 -9 -9 -8 -8 ------- Run | Yrd Mat Mat Min Mat Gar Traps Triggered . | . . . . . . Indirectly . | . . . . . . Trap Hack Attempts . | . . . . . . Triggered . | . . . . . . Disarmed . | . . . . . . Reprogrammed . | . . . . . . Reused . | . . . . . . Traps Extracted . | . . . . . . Installed . | . . . . . . Triggered . | . . . . . . Machines | -11 -10 -9 -9 -8 -8 ---------- Run | Yrd Mat Mat Min Mat Gar Machines Disabled 2 | . 1 . 1 . . Max in Single Turn 1 | . 1 . . . . Machines Repaired . | . . . . . . Machines Dismantled . | . . . . . . Machines Sabotaged . | . . . . . . Overloaded Fab Kills . | . . . . . . Hacking | -11 -10 -9 -9 -8 -8 --------- Run | Yrd Mat Mat Min Mat Gar Machines Accessed 7 | . 2 1 . 2 2 Terminals 5 | . 1 1 . 1 2 Fabricators . | . . . . . . Repair Stations . | . . . . . . Recycling Units 1 | . 1 . . . . Scanalyzers . | . . . . . . Garrison Access 1 | . . . . 1 . Total Hacks 16 | . 4 1 . 9 2 Successful 5 | . . . . 4 1 Failed 11 | . 4 1 . 5 1 Catastrophic 1 | . . . . . 1 Database Lockouts . | . . . . . . Manual 8 | . 2 1 . 4 1 Terminals 10 | . 2 1 . 5 2 Fabricators . | . . . . . . Repair Stations . | . . . . . . Recycling Units 2 | . 2 . . . . Scanalyzers . | . . . . . . Garrison Access 4 | . . . . 4 . Terminal Hacks 3 | . . . . 2 1 Alert Level 1 | . . . . 1 . Unreport Threat 1 | . . . . 1 . Patrol Navigation 1 | . . . . . 1 Fabricator Hacks . | . . . . . . Repair Station Hacks . | . . . . . . Recycling Unit Hacks . | . . . . . . Scanalyzer . | . . . . . . Garrison Access Hacks 2 | . . . . 2 . Unlock Access 1 | . . . . 1 . Coupler Status 1 | . . . . 1 . Unauthorized Hacks . | . . . . . . Terminals . | . . . . . . Fabricators . | . . . . . . Repair Stations . | . . . . . . Recycling Units . | . . . . . . Scanalyzers . | . . . . . . Garrison Access . | . . . . . . Data Cores Recovered . | . . . . . . Used . | . . . . . . Hacking Detections 7 | . 2 1 . 2 2 Full Trace Events . | . . . . . . Feedback Events . | . . . . . . Feedback Blocked . | . . . . . . Robot Schematics Acquired . | . . . . . . Robots Built . | . . . . . . Authchips . | . . . . . . Time . | . . . . . . Total Robot Build Rating . | . . . . . . Part Schematics Acquired . | . . . . . . Parts Built . | . . . . . . Authchips . | . . . . . . Time . | . . . . . . Total Part Build Rating . | . . . . . . Part Studies Acquired . | . . . . . . Parts Repaired . | . . . . . . Time . | . . . . . . Parts Recycled . | . . . . . . Recycled Matter . | . . . . . . Retrieved Matter . | . . . . . . Retrieved Components . | . . . . . . Parts Scanalyzed . | . . . . . . Part Schematics Acquired . | . . . . . . Parts Damaged . | . . . . . . Bothacking | -11 -10 -9 -9 -8 -8 ------------ Run | Yrd Mat Mat Min Mat Gar Used RIF Installer . | . . . . . . Robots Hacked . | . . . . . . Non-combat . | . . . . . . Combat . | . . . . . . Robot Hacks Applied . | . . . . . . Relay Couplers Released . | . . . . . . Fabnet Peak Effective % . | . . . . . . Robots Rewired . | . . . . . . Allies Hacked . | . . . . . . Hacks Repelled . | . . . . . . Allies | -11 -10 -9 -9 -8 -8 -------- Run | Yrd Mat Mat Min Mat Gar Total Allies 3 | . . . 3 . . Largest Group 3 | . . . 3 . . Highest-Rated Group 40 | . . . 40 . . Highest-Rated Ally 16 | . . . 16 . . Total Orders . | . . . . . . Ally Attacks 32 | . . . 32 . . Total Damage 288 | . . . 288 . . Kills 5 | . . . 5 . . Allies Corrupted . | . . . . . . Allies Melted . | . . . . . . Intel | -11 -10 -9 -9 -8 -8 ------- Run | Yrd Mat Mat Min Mat Gar Active Infowar (turns) . | . . . . . . Robot Analysis Total . | . . . . . . Derelict Logs Recovered 1 | . . . 1 . . Drone Launches . | . . . . . . Drone Recoveries . | . . . . . . Exploration | -11 -10 -9 -9 -8 -8 ------------- Run | Yrd Mat Mat Min Mat Gar Turns Passed 2646 | 113 609 573 530 295 526 Spaces Moved 1398 | 51 322 283 314 150 278 Core 19 | 5 . . . . 14 Treads 1379 | 46 322 283 314 150 264 Legs . | . . . . . . Wheels . | . . . . . . Hover . | . . . . . . Flight . | . . . . . . Fastest Speed 50 | 50 160 160 160 160 50 Average Speed 160 | 149 160 160 160 165 161 Slowest Speed 250 | 160 160 160 160 166 250 Overloaded Moves . | . . . . . . Propulsion Burnouts . | . . . . . . Robots Hopped . | . . . . . . Potential Cave-ins . | . . . . . . Cave-ins Triggered . | . . . . . . Exploration Rate (%) 32 | 5 46 23 71 18 32 Regions Visited 5 Branch Regions 1 Pre-discovered Areas 1 | . . . 1 . . Known Exits Taken 4 | . 1 1 1 1 . Unknown Exits Taken 1 | 1 . . . . . Scrap Searched 3 | . . . 3 . . Spaces Dug . | . . . . . . Terrain Destroyed 19 | . 17 . . 2 . Melee . | . . . . . . Projectile 2 | . . . . 2 . AOE 17 | . 17 . . . . Terrain Rammed . | . . . . . . Walls Destroyed . | . . . . . . Machines Disabled . | . . . . . . Actions | -11 -10 -9 -9 -8 -8 --------- Run | Yrd Mat Mat Min Mat Gar Total 1599 | 70 365 342 332 179 311 Wait 11 | . . . 7 4 . Move 1392 | 51 321 282 313 149 276 Hop . | . . . . . . Pick Up 24 | 5 7 7 2 2 1 Fast Attach 11 | 7 1 1 . 2 . Attach 7 | . 2 2 . 3 . Detach 2 | . 1 . . 1 . Swap 19 | . 2 6 1 4 6 Drop 24 | . 4 8 3 5 4 Fire 107 | 7 27 35 6 9 23 Melee . | . . . . . . Ram 1 | . . . . . 1 Kick . | . . . . . . Crush 1 | . . 1 . . . Escape Stasis . | . . . . . . Rewire . | . . . . . . Trap . | . . . . . . Miscellaneous . | . . . . . . Route ------- -11/Scrapyard -10/Materials (discovered 3 exits: *Mat x2 / [*Min]) -9/Materials -9/Mines (discovered 2 exits: *Mat x2) -8/Materials -8/Garrison (discovered 1 exit: [*Mat]) History --------- Turn | Location | Event 40 | -11/Scrapyard | Discovered new exit (range 14) 114 | -11/Scrapyard | Entered Materials 287 | -10/Materials | Discovered new exit (range 5) 316 | -10/Materials | Build established: Mutant 393 | -10/Materials | Discovered new exit (range 14) 527 | -10/Materials | Discovered new exit (range 3) 721 | -10/Materials | Identified exit to Materials 723 | -10/Materials | Entered another Materials area 723 | -9/Materials | Evolved 2 slots: Propulsion x1, Utility x1 1073 | -9/Materials | Discovered new exit (range 13) 1104 | -9/Materials | Identified exit to Mines 1296 | -9/Materials | Entered Mines 1297 | -9/Mines | Learned location of Storage (-7) 1312 | -9/Mines | Assisted by bots powering up and referring to "LRC-V3" 1348 | -9/Mines | Discovered new exit (range 12) 1502 | -9/Mines | Lost 3 allies 1671 | -9/Mines | Discovered new exit (range 12) 1687 | -9/Mines | Identified exit to Materials 1712 | -9/Mines | Learned Materials terminal intel 1826 | -9/Mines | Entered Materials 1826 | -8/Materials | Evolved 2 slots: Power x1, Utility x1 1827 | -8/Materials | Loaded intel: 12 terminal locations 2116 | -8/Materials | Identified exit to Garrison 2121 | -8/Materials | Entered Garrison 2199 | -8/Garrison | Triggered checkpoint 2463 | -8/Garrison | Triggered checkpoint 2491 | -8/Garrison | Triggered checkpoint 2563 | -8/Garrison | Discovered new exit (range 12) 2640 | -8/Garrison | Released all parts (6) 2644 | -8/Garrison | Attempted to access garrison exit controls, blocked by remote lockdown 2646 | -8/Garrison | Core integrity fell below 50% 2647 | -8/Garrison | Self-destructed Last Messages --------------- 02617_ S-10 Pest destroyed. 02618_ Arm. Treads broken. 02618_ Overheating: Short circuit. 02618_ Acquired 9 matter. 02621_ Overheating: Core damaged (-93). 02623_ Dropped Ion Engine. 02630_ Lgt. Ion Engine severed. 02633_ Med. Armor Plating destroyed. 02635_ Hvy. Particle Gun destroyed. 02635_ Broken Ion Engine destroyed. 02638_ Arm. Treads severed. 02640_ Released Flak Gun. 02640_ Released Broken Arm. Treads. 02640_ Released Med. Storage Unit. 02640_ Released Broken Targeting Computer. 02640_ Released Hacking Suite. 02640_ Released Lgt. Treads. 02644_ Attempting to access garrison exit controls... 02644_ Remote lockdown engaged. 02646_ Slammed into C-17 Slicer. Map ----- +----------------------------------------------------+ | | | | | ?????????????????????????????????????????????????? | | ?????????????????????????????????????????????????? | | ?????????????????????????????????????????????????? | | ?????????????????????????????????????????????????? | | ?????????????????????????????????????????????????? | | ?????????????????????????????????????????????????? | | ?????????????????????????????????????????????????? | | ?????????????????????????????????????????????????? | | ?????????????????????????????????????????????????? | | ?????????????????????????????????????????????????? | | ?????????????????????????????????????????????????? | | ?????????????????????????????????????????????????? | | ?????????????????????????????????????????????????? | | ?????????????????????????????????????????????????? | | ?????????????????????????????????????????????????? | | ?????????????????????????????????????????????????? | | ?????????????????????????????????????????????????? | | ??????????????????????#######????????????????????? | | ??????????????????????#C C C#????????????????????? | | ??????????????????????# #????????????????????? | | ??????????????????????# < #????????????????????? | | ??????????????#######?# c #????????????????????? | | ????????????###!! [ ###C cC #????????????????????? | | ????????????# [ ## @c##????????????????????? | | ????????????# ^ ## #?????????????????????? | | ????????????# #!! ]]# ## s #?????????????????????? | | ????????????# ####### ## #?????????????????????? | | ????????????# #?????# ## =#?????????????????????? | | ????????????# #?????# ## !=#?????????????????????? | | ????????????# #?????# ##s![#?????????????????????? | | ???????????## ####### ##g==#?????????????????????? | | ???????????# Yg =#?????????????????????? | | ???????????# =! * #?????????????????????? | | ???????????# #######*######?????????????????????? | | ???????????# #?????# #??????????????????????????? | | ???????????# #?????#*#??????????????????????????? | | ???????????# #?????#%#######"???????????????????? | | ???????????+ #?????+[ ????????????? | | ???????????# #?????##########???????????????????? | | ???????????# #??????????????????????????????????? | | ???????????# #??????????????????????????????????? | | ???????????# #??????????????????????????????????? | | ## ## ## ##?????????????????????????????????? | | # #?????????????????????????????????? | | # #?????????????????????????????????? | | # #?????????????????????????????????? | | # ## ## #?????????????????????????????????? | | # ## ## ###???????????????????????????????? | +----------------------------------------------------+ Best States ------------- Heat Dissipation 31 Energy Generation 15 Energy Capacity 400 Matter Stores 300 Matter Capacity 300 Sight Range 16 Terrain Scan Density 10 Armor Coverage 225 Evasion (%) 40 Targeting Accuracy 5 Recoil Reduction 3 Offensive Hacking 10 Item Schematics ----------------- None Robot Schematics ------------------ None Fabricated ------------ Nothing Repaired ---------- Nothing Studied --------- None Alien Tech Used ----------------- None Achievements -------------- None Challenges ------------ None Game ------ Seed DispersalZeronetFirepult Manual? 0 Play Time 00:23:39 Cumulative 22.9 hours Start 2026.01.09 @ 12:04:46 End 2026.01.09 @ 13:19:28 Sessions 1 Manual Loads 0 Difficulty Rogue Special Mode None Game No. 43 Rogue 40 Adventurer 3 Explorer 0 Win Type - Total 0 Types 0/0/0/0/0/0/0/0/0/0 Lore% 9 Gallery% 25 Achievement% 17 Wizard Run 0 Options --------- Layout 0 ASCII 0 Keyboard 0 Movement Mouse Keybinds 0 Fullscreen 1 Font 18/SmallcapsGlow Map View 65x51 Zoom Use 0% Tactical HUD 1 Map Filters NONE Filters NONE Steam 1 RUN: 9158837c-c33a-45c2-9e49-d05ca8862c6d